bitfinex-derivatives/quotes_ETHF0:USTF0_20260303
["timestamp","ask_amount","ask_price","bid_price","bid_amount"]
[1772539205304,0.44185532,1962.5,1961.1,0.56699697]
[1772539205707,0.44185532,1962.5,1961.3,0.56699697]
[1772539205910,0.44185532,1962.5,1961.5,0.56699697]
[1772539206312,0.44713436,1962.5,1961.5,0.56699697]
[1772539206509,0.443907,1962.4,1961.5,0.56699697]
[1772539207201,0.00527904,1962.5,1961.5,0.56699697]
[1772539210613,0.45305933,1963.0,1961.5,0.56699697]
[1772539211714,0.45891721,1963.0,1961.5,0.56699697]
[1772539212119,0.45891721,1963.0,1961.8,0.56699697]
[1772539212413,0.45891721,1963.0,1962.0,0.56699697]
[1772539213308,0.46876771,1962.9,1962.0,0.56699697]
[1772539213515,0.46876771,1962.9,1961.6,0.56699697]
[1772539214308,0.47072206,1962.8,1961.6,0.56699697]
[1772539215514,0.47072206,1962.8,1961.8,0.56699697]
[1772539221424,0.45050969,1962.6,1961.5,0.55001194]
[1772539222121,0.45095821,1962.4,1961.5,0.55001194]
[1772539223319,0.25482,1962.5,1961.5,0.55001194]
[1772539223320,0.45095821,1962.3,1961.5,0.55001194]
[1772539224021,0.45095821,1962.4,1961.5,0.55001194]
[1772539225715,0.45095821,1962.4,1960.9,0.55001194]
[1772539225716,0.45039937,1962.2,1960.9,0.55001194]
[1772539225915,0.45039937,1962.1,1960.9,0.55001194]
[1772539226922,0.45854935,1962.0,1960.9,0.55001194]
[1772539227329,0.45854935,1961.9,1960.9,0.55001194]
[1772539228022,0.45945261,1961.7,1960.9,0.55001194]
[1772539228621,0.25491,1961.8,1960.9,0.55001194]
[1772539228622,0.45945261,1961.6,1960.9,0.55001194]
[1772539228926,0.46595913,1961.6,1960.8,0.55489701]
[1772539229421,7.2532785,1961.6,1960.8,0.55489701]
[1772539229625,0.46595913,1961.6,1960.8,0.55489701]
[1772539232121,0.46595913,1961.6,1960.8,0.00488507]
[1772539232525,0.45970047,1961.4,1960.6,0.55001194]
[1772539233120,0.00650652,1961.6,1960.6,0.55001194]
[1772539233426,0.00650652,1961.6,1960.6,0.55577181]
[1772539233825,0.00650652,1961.6,1960.8,0.55001194]
[1772539234027,0.45970047,1961.9,1960.9,0.55001194]
[1772539234331,0.4673172,1962.1,1960.9,0.55001194]
[1772539235220,0.4736516,1962.1,1960.9,0.55001194]
[1772539236834,0.47309778,1962.0,1960.9,0.55001194]
[1772539237331,0.2612044,1962.1,1960.9,0.55001194]
[1772539237332,0.47309778,1961.8,1960.9,0.55001194]
[1772539239527,0.47337261,1961.6,1960.9,0.55001194]
[1772539240431,0.47337261,1961.6,1960.7,0.55001194]
[1772539240828,0.09540177,1960.9,1960.7,0.55001194]
[1772539241024,0.47017302,1961.3,1960.7,0.53251008]
[1772539243233,0.54533646,1961.2,1960.3,0.55001194]
[1772539244232,0.54533646,1961.2,1960.3,0.55444011]
[1772539245934,0.54533646,1961.6,1960.3,0.55444011]
[1772539249039,0.54533646,1961.6,1960.4,0.25509]
[1772539249238,0.54533646,1961.6,1960.6,0.56731411]
[1772539252435,0.56875728,1961.9,1960.8,0.56731411]
[1772539252640,0.56875728,1961.9,1961.0,0.56731411]
[1772539253040,0.0063344,1962.1,1961.2,0.56731411]
[1772539253241,0.0063344,1962.1,1961.4,0.56731411]
[1772539254342,0.57509168,1962.1,1961.4,0.56731411]
[1772539257243,0.57509168,1962.1,1961.5,6.676]
[1772539257541,0.57509168,1962.1,1961.6,0.56731411]
[1772539258434,0.0063344,1962.1,1961.6,0.56731411]
[1772539259043,0.56875728,1962.4,1961.6,0.56731411]
[1772539260042,0.00629855,1962.4,1961.6,0.56731411]
[1772539260441,0.00629855,1962.4,1961.1,2.6582006]
[1772539260442,0.56875728,1962.6,1961.8,0.56731411]
[1772539260643,0.56875728,1962.9,1962.0,0.56731411]
[1772539261547,0.57423749,1962.9,1962.0,0.57189335]
[1772539262643,0.82900749,1962.9,1962.0,0.00457924]
[1772539262842,0.56875728,1962.8,1962.0,0.00457924]
[1772539263347,0.56875728,1962.7,1961.8,0.56731411]
[1772539264347,0.56875728,1962.7,1961.8,0.57173197]
[1772539266449,0.56875728,1962.8,1961.9,0.56731411]
[1772539270546,0.00548021,1962.9,1961.9,0.56731411]
[1772539270744,0.57423749,1962.9,1961.9,0.56731411]
[1772539271343,0.00548021,1962.9,1962.1,0.56731411]
[1772539271544,0.56875728,1963.1,1962.3,0.56731411]
[1772539271749,0.56875728,1963.3,1962.3,0.56731411]
[1772539272654,0.57255169,1963.3,1962.3,0.56731411]
[1772539276350,0.00379441,1963.3,1962.6,0.56731411]
[1772539279056,0.57818352,1964.1,1962.8,0.54560266]
[1772539279262,0.57818352,1964.1,1963.0,0.54560266]
[1772539279463,0.57818352,1964.1,1963.2,0.54560266]
[1772539279955,0.57818352,1964.1,1963.4,0.5879801]
[1772539280161,0.58302101,1964.1,1963.4,0.5879801]
[1772539287469,0.58302101,1964.1,1963.3,6.674]
[1772539287773,0.58302101,1964.1,1963.3,7.2619801]
[1772539288271,0.58302101,1964.1,1963.4,0.5879801]
[1772539292974,0.58302101,1964.1,1963.4,6.673]
[1772539293171,0.58782801,1964.7,1963.7,0.5879801]
[1772539293577,0.58782801,1964.7,1963.8,0.5879801]
[1772539293774,0.58782801,1964.7,1963.4,0.5879801]
[1772539294074,0.58782801,1964.7,1963.3,0.25471]
[1772539294075,0.59402391,1964.7,1963.6,0.5879801]
[1772539294867,0.58782801,1964.6,1963.6,0.5879801]
[1772539298780,0.58782801,1964.5,1963.6,0.5879801]
[1772539299576,0.58782801,1964.3,1963.4,7.2609801]
[1772539300183,0.58782801,1964.3,1963.2,0.00429603]
[1772539300184,0.58782801,1964.1,1963.2,0.59227613]
[1772539302376,0.58782801,1964.0,1963.2,0.59227613]
[1772539302775,0.58782801,1964.0,1963.2,0.00429603]
[1772539303784,0.58782801,1964.0,1963.2,0.59227613]
[1772539308389,0.55051826,1963.9,1963.2,0.59227613]
[1772539309381,0.55051826,1963.9,1963.2,0.00429603]
[1772539310092,0.55051826,1963.8,1963.2,0.58059047]
[1772539311195,0.55051826,1963.7,1962.4,0.57629444]
[1772539312292,0.55051826,1963.7,1962.4,0.58130479]
[1772539312592,0.55051826,1963.7,1962.5,0.57629444]
[1772539312791,0.55051826,1963.6,1962.5,0.57629444]
[1772539314087,0.55051826,1963.5,1962.5,0.57629444]
[1772539314288,0.55051826,1963.3,1962.4,0.58130479]
[1772539314492,0.55051826,1963.2,1962.4,0.58130479]
[1772539315790,0.55051826,1963.2,1962.2,0.57629444]
[1772539316091,0.55051826,1963.1,1962.2,0.57629444]
[1772539316597,0.55051826,1963.1,1961.7,0.25491]
[1772539316797,0.55051826,1963.1,1961.8,0.57629444]
[1772539317597,0.55051826,1962.9,1961.8,0.57629444]
[1772539319594,0.55051826,1962.9,1961.9,0.57629444]
[1772539319801,0.55051826,1963.2,1961.9,0.57629444]
[1772539320599,0.55051826,1963.2,1962.1,0.57629444]
[1772539320802,0.55051826,1962.8,1961.8,0.57629444]
[1772539321098,0.55051826,1962.6,1961.8,0.57629444]
[1772539322001,0.55051826,1962.6,1961.7,0.00602057]
[1772539322400,0.55051826,1962.4,1961.2,0.57629444]
[1772539323602,0.55051826,1962.4,1961.2,0.58183171]
[1772539325207,0.55051826,1962.2,1961.2,0.58183171]
[1772539328203,0.55051826,1962.4,1961.4,0.57629444]
[1772539329206,0.55051826,1962.3,1961.4,0.57629444]
[1772539332409,0.55051826,1962.3,1961.5,0.57629444]
[1772539334513,0.55051826,1962.8,1961.7,0.57629444]
[1772539335414,0.55051826,1962.8,1961.9,0.57629444]
[1772539335616,0.55051826,1962.8,1962.0,0.57629444]
[1772539336315,0.55051826,1963.2,1962.0,0.57629444]
[1772539337212,0.55051826,1963.0,1962.0,0.57629444]
[1772539340410,0.55013532,1962.8,1962.0,0.57629444]
[1772539343917,0.55013532,1962.6,1961.8,0.57292068]
[1772539346217,0.55013532,1962.4,1961.6,0.57292068]
[1772539346419,0.55013532,1962.2,1961.2,0.00553727]
[1772539346616,0.55013532,1962.2,1961.3,0.57292068]
[1772539347016,7.58224688,1962.2,1961.3,0.57292068]
[1772539347217,0.55013532,1962.1,1961.3,0.57292068]
[1772539352328,0.55013532,1962.5,1961.3,0.57292068]
[1772539352529,0.55013532,1962.4,1961.3,0.57292068]
[1772539355726,0.55013532,1962.3,1961.3,0.57292068]
[1772539356131,0.55013532,1962.1,1961.3,0.57292068]
[1772539357229,0.55013532,1962.4,1961.4,0.57292068]
[1772539360536,0.55013532,1962.9,1961.8,0.57292068]
[1772539360741,0.55013532,1963.1,1962.0,0.57292068]
[1772539360942,0.55013532,1963.1,1962.1,0.57292068]
[1772539370445,0.5681989,1963.2,1962.1,0.57292068]
[1772539370645,0.57287919,1963.3,1962.1,0.57292068]
[1772539370946,0.57287919,1963.3,1962.3,0.54177624]
[1772539371148,0.00468029,1963.3,1962.5,0.54177624]
[1772539371350,0.5681989,1963.6,1962.5,0.54177624]
[1772539372547,0.57395082,1963.6,1962.5,0.54177624]
[1772539374650,0.00575192,1963.6,1962.7,0.54177624]
[1772539374847,0.00575192,1963.6,1962.7,0.54665912]
[1772539375052,0.5681989,1964.0,1962.7,0.54665912]
[1772539375251,0.5681989,1964.0,1962.9,0.54177624]
[1772539376043,0.25458,1964.4,1962.8,6.676]
[1772539376044,0.5681989,1964.7,1963.3,0.54177624]
[1772539376252,0.5681989,1964.7,1963.5,0.54177624]
[1772539377154,0.57405293,1964.7,1963.5,0.54177624]
[1772539380652,0.5681989,1964.5,1963.5,0.54177624]
[1772539380856,0.5681989,1964.5,1963.3,7.21577624]
[1772539381253,0.5681989,1964.5,1963.4,0.54177624]
[1772539382657,0.5681989,1964.5,1963.5,0.54177624]
[1772539383455,0.5681989,1964.4,1963.3,0.54177624]
[1772539384458,0.00585403,1964.7,1962.8,0.54177624]
[1772539384459,0.5681989,1964.2,1962.8,0.54177624]
[1772539384660,0.5681989,1964.2,1962.7,0.00488288]
[1772539384661,0.5681989,1964.2,1963.0,0.54177624]
[1772539385464,0.5681989,1964.0,1963.0,0.54177624]
[1772539387565,0.5681989,1964.5,1963.1,0.54177624]
[1772539387763,0.5681989,1964.5,1963.3,0.54177624]
[1772539389166,0.5681989,1964.3,1963.3,0.54177624]
[1772539390060,0.25459,1964.2,1963.1,7.21477624]
[1772539390359,0.5681989,1964.1,1963.2,0.54177624]
[1772539390865,0.5681989,1963.9,1963.0,0.54177624]
[1772539393169,0.5681989,1963.7,1962.8,0.54177624]
[1772539394061,0.5681989,1963.7,1962.7,0.00488288]
[1772539394264,0.5681989,1963.7,1962.7,0.54665912]
[1772539395365,0.5681989,1963.6,1962.7,0.54665912]
[1772539396763,0.5681989,1963.6,1962.7,0.00488288]
[1772539396970,0.5681989,1963.4,1962.4,0.54177624]
[1772539397571,4.22444683,1963.8,1962.4,0.54177624]
[1772539397572,0.5681989,1963.2,1962.4,0.54177624]
[1772539397864,0.5681989,1963.2,1962.4,0.0052699]
[1772539398566,0.5695394,1963.1,1962.4,0.0052699]
[1772539399575,0.5695394,1963.1,1962.4,0.56453363]
[1772539403972,0.5695394,1963.1,1962.4,0.0052699]
[1772539404468,0.5695394,1963.1,1962.4,0.56453363]
[1772539407278,0.55274082,1963.2,1962.4,0.56453363]
[1772539415696,0.55274082,1963.6,1962.4,0.56453363]
[1772539417393,0.55274082,1963.6,1962.6,0.55926373]
[1772539417793,0.55274082,1964.0,1962.9,0.55926373]
[1772539420703,0.55274082,1963.9,1962.9,0.55926373]
[1772539422797,0.55274082,1964.1,1962.9,0.55926373]
[1772539423403,0.55274082,1964.1,1963.2,0.55926373]
[1772539423796,0.00406177,1964.2,1963.2,0.55926373]
[1772539423998,0.55680259,1964.2,1963.2,0.55926373]
[1772539424193,2.39899672,1964.9,1963.6,0.55926373]
[1772539424194,0.55274082,1964.6,1963.6,0.55926373]
[1772539424400,0.55274082,1964.8,1963.9,0.55926373]
[1772539425301,0.55685646,1964.8,1963.9,0.56581328]
[1772539425896,0.00411564,1964.8,1963.9,0.56581328]
[1772539426103,0.55274082,1965.5,1964.3,0.55926373]
[1772539426500,0.55274082,1965.3,1964.3,0.55926373]
[1772539426899,0.55274082,1965.2,1964.0,0.55926373]
[1772539427096,0.55914691,1965.2,1964.0,0.55926373]
[1772539427503,0.55274082,1965.1,1964.0,0.55926373]
[1772539432808,0.58003796,1964.9,1964.0,0.55926373]
[1772539433902,0.58003796,1966.0,1964.6,0.54873573]
[1772539434208,0.58003796,1966.0,1964.9,0.54873573]
[1772539434809,0.58003796,1966.2,1964.9,0.54873573]
[1772539435102,0.58512678,1966.2,1964.9,0.54873573]
[1772539437212,0.58003796,1966.0,1964.9,0.54873573]
[1772539437401,0.58003796,1965.8,1964.9,0.54873573]
[1772539440007,0.58003796,1965.6,1964.3,0.54873573]
[1772539440412,0.58003796,1965.4,1964.3,0.54873573]
[1772539441312,0.58003796,1965.2,1964.3,0.54873573]
[1772539441512,0.58003796,1965.2,1964.0,0.54873573]
[1772539442414,0.58003796,1965.0,1963.9,0.00654955]
[1772539442614,0.58003796,1964.8,1963.9,0.00654955]
[1772539442914,0.58470726,1964.8,1963.9,0.00654955]
[1772539443111,0.58470726,1964.8,1963.9,0.55528528]
[1772539446713,0.0046693,1964.8,1963.9,0.55528528]
[1772539446908,0.0046693,1964.8,1963.9,2.954282]
[1772539447108,0.0046693,1964.8,1964.0,0.54873573]
[1772539448511,0.58003796,1965.6,1964.2,0.54873573]
[1772539448711,0.58003796,1965.6,1964.4,0.54873573]
[1772539449518,0.58600165,1965.6,1964.4,0.54873573]
[1772539455521,0.58600165,1965.6,1964.6,0.54873573]
[1772539460522,0.56734772,1965.4,1964.6,0.54873573]
[1772539462528,0.57331141,1965.6,1964.6,0.54873573]
[1772539464826,0.56734772,1966.0,1964.9,0.56078882]
[1772539465831,0.57288872,1966.0,1964.9,0.56078882]
[1772539468134,0.56734772,1965.8,1964.9,0.56078882]
[1772539468329,0.56734772,1965.8,1964.2,9.09157672]
[1772539468330,0.56734772,1965.7,1964.3,0.56078882]
[1772539468933,0.56734772,1965.6,1964.3,0.56078882]
[1772539470335,0.56734772,1965.6,1964.5,0.56078882]
[1772539471533,0.56734772,1965.8,1964.6,0.56078882]
[1772539471735,0.56734772,1965.8,1964.8,0.56078882]
[1772539472831,0.56734772,1965.8,1965.0,0.56078882]
[1772539473237,0.57288872,1966.0,1965.0,0.56078882]
[1772539479143,0.005541,1966.0,1965.0,0.56078882]
[1772539479343,0.57288872,1966.0,1965.0,0.56078882]
[1772539479535,0.57288872,1966.0,1965.1,0.25448]
[1772539479742,0.56734772,1966.2,1965.2,0.56078882]
[1772539480146,6.667,1966.5,1965.2,0.56078882]
[1772539480448,0.56734772,1966.6,1965.6,0.56078882]
[1772539480742,0.5737076,1966.6,1965.8,0.56078882]
[1772539480942,0.56734772,1967.0,1965.8,0.56078882]
[1772539481142,0.56734772,1967.0,1966.0,0.56078882]
[1772539482045,0.57265821,1967.0,1966.0,0.56078882]
[1772539482245,0.57265821,1967.0,1965.6,0.00657548]
[1772539482544,0.56734772,1966.9,1965.7,0.56078882]
[1772539482845,0.56734772,1966.8,1965.7,0.56078882]
[1772539483045,0.56734772,1966.6,1965.6,0.00657548]
[1772539483746,0.56734772,1966.5,1965.6,0.00657548]
[1772539484948,0.56734772,1966.5,1965.6,0.5673643]
[1772539488756,0.58553858,1966.3,1965.4,0.56627195]
[1772539489846,0.58553858,1966.3,1965.4,0.57052816]
[1772539494261,0.58553858,1966.1,1965.4,0.00425621]
[1772539494558,0.58553858,1966.1,1965.4,0.57052816]
[1772539495559,0.58553858,1966.2,1965.4,0.57052816]
[1772539496355,0.58553858,1966.4,1965.4,0.57052816]
[1772539501060,0.58553858,1966.6,1965.5,0.56627195]
[1772539501958,0.58553858,1966.4,1965.5,0.56627195]
[1772539503260,0.58553858,1966.3,1965.5,0.56627195]
[1772539504558,0.83983858,1966.5,1965.5,0.56627195]
[1772539504865,0.58553858,1966.4,1965.5,0.56627195]
[1772539505264,0.58553858,1966.6,1965.5,0.56627195]
[1772539506265,0.58553858,1966.8,1965.7,0.56627195]
[1772539507655,0.58553858,1966.9,1965.9,0.56627195]
[1772539508064,0.00531049,1967.0,1966.1,0.56627195]
[1772539508259,0.59084907,1967.0,1966.1,0.56627195]
[1772539509066,0.58553858,1967.9,1966.6,0.56627195]
[1772539509260,0.58553858,1967.8,1966.8,0.56627195]
[1772539510261,0.59206235,1967.8,1966.8,0.57232973]
[1772539510763,0.58553858,1967.4,1966.5,0.56627195]
[1772539510960,0.58553858,1967.0,1965.7,0.56627195]
[1772539511560,0.58553858,1966.8,1965.7,0.56627195]
[1772539511862,0.58553858,1966.8,1965.7,0.57025113]
[1772539514865,0.58553858,1966.6,1965.7,0.00397918]
[1772539516564,0.58553858,1966.2,1965.4,0.56627195]
[1772539517561,0.59147228,1966.2,1965.4,0.57265754]
[1772539518972,0.59147228,1966.2,1965.4,0.00638559]
[1772539519969,0.59231782,1966.0,1965.4,0.00638559]
[1772539520163,0.59231782,1966.0,1964.9,6.664]
[1772539520164,0.59231782,1966.0,1965.1,0.59934946]
[1772539521169,0.59231782,1966.0,1965.1,0.60526117]
[1772539522064,7.25731782,1966.0,1965.1,0.00591171]
[1772539522268,0.59231782,1965.9,1965.1,0.00591171]
[1772539523360,0.59231782,1965.7,1965.1,0.00591171]
[1772539524364,0.59231782,1965.7,1964.3,6.665]
[1772539524365,0.59231782,1965.7,1964.8,0.59934946]
[1772539524770,0.59231782,1965.5,1964.4,0.59934946]
[1772539525375,0.59231782,1965.5,1964.4,0.60358111]
[1772539526075,0.59231782,1965.5,1964.5,0.59934946]
[1772539526977,0.59231782,1965.7,1964.7,0.59934946]
[1772539527181,0.59231782,1965.6,1964.7,0.59934946]
[1772539527475,0.59231782,1965.6,1964.5,0.59934946]
[1772539529369,0.59231782,1966.0,1964.6,0.59934946]
[1772539529573,0.59231782,1966.0,1964.8,0.59934946]
[1772539530478,0.59231782,1965.8,1964.8,0.59934946]
[1772539533775,0.59825152,1966.2,1965.0,0.59934946]
[1772539533981,0.59825152,1966.2,1965.2,0.59934946]
[1772539535180,0.0059337,1966.2,1965.5,0.59934946]
[1772539537986,0.25425,1966.9,1965.1,6.667]
[1772539537987,0.59231782,1966.9,1965.7,2.98976183]
[1772539538188,0.59231782,1966.9,1965.9,0.59934946]
[1772539538987,0.59785282,1966.9,1965.9,0.60441496]
[1772539542087,0.59785282,1966.9,1966.1,0.59934946]
[1772539542881,0.005535,1966.9,1966.1,0.59934946]
[1772539543687,0.59785282,1966.9,1966.1,0.59934946]
[1772539544483,0.005535,1966.9,1966.1,0.59934946]
[1772539545496,0.59785282,1966.9,1966.1,0.59934946]
[1772539546194,0.59785282,1966.9,1966.2,0.59934946]
[1772539547695,0.59785282,1966.9,1965.9,0.0050655]
[1772539547696,0.59785282,1966.9,1966.0,0.59907811]
[1772539549595,0.005535,1966.9,1966.1,0.59907811]
[1772539549796,0.58842951,1967.9,1966.4,0.59907811]
[1772539549995,0.58842951,1967.8,1966.6,0.59907811]
[1772539550503,0.58842951,1967.8,1967.0,0.59907811]
[1772539550699,0.58842951,1967.8,1967.2,0.59907811]
[1772539550899,0.59325553,1967.8,1967.2,0.59907811]
[1772539551299,0.59325553,1967.8,1966.9,0.59907811]
[1772539552805,0.59325553,1967.8,1966.2,6.25667]
[1772539552806,0.58842951,1967.5,1965.9,0.60414361]
[1772539553100,0.58842951,1967.2,1965.9,0.60414361]
[1772539554201,0.58842951,1967.2,1966.0,0.59907811]
[1772539554603,0.58842951,1967.2,1966.2,0.59907811]
[1772539556900,0.58842951,1967.2,1966.3,0.59907811]
[1772539557098,0.58842951,1967.7,1966.3,0.59907811]
[1772539557397,0.58842951,1967.7,1966.5,0.59907811]
[1772539557601,0.58842951,1967.7,1966.7,0.59907811]
[1772539558001,0.00482602,1967.8,1966.9,0.59907811]
[1772539558002,0.59325553,1967.8,1966.9,0.59907811]
[1772539558407,0.59325553,1967.8,1967.0,7.26207811]
[1772539558909,0.59325553,1967.8,1967.1,6.663]
[1772539559206,0.59325553,1967.8,1967.0,0.59907811]
[1772539559406,0.59325553,1967.8,1967.0,7.26107811]
[1772539559707,0.59325553,1967.8,1967.1,7.26107811]
[1772539560004,0.59325553,1967.8,1967.2,0.59907811]
[1772539560208,0.00482602,1967.8,1967.2,0.59907811]
[1772539560404,0.58842951,1967.9,1967.2,0.59907811]
[1772539560603,0.58842951,1967.9,1966.9,6.662]
[1772539560906,0.58842951,1967.9,1967.0,0.59907811]
[1772539561307,0.59250667,1967.9,1967.0,0.59907811]
[1772539561703,0.59250667,1967.9,1967.1,0.59907811]
[1772539562101,0.59250667,1967.9,1966.9,0.59907811]
[1772539562306,0.58842951,1967.7,1966.5,7.26107811]
[1772539562507,0.58842951,1967.5,1966.5,0.59907811]
[1772539562707,0.58842951,1967.3,1966.3,0.59907811]
[1772539562906,0.58842951,1967.3,1966.3,7.26107811]
[1772539563907,0.84265951,1967.0,1965.9,0.0050655]
[1772539564107,0.58842951,1966.8,1965.9,0.0050655]
[1772539564305,0.58842951,1966.8,1965.9,0.60414361]
[1772539564811,0.58842951,1966.6,1965.9,0.0050655]
[1772539565505,0.58842951,1966.6,1965.6,6.662]
[1772539565711,0.58842951,1966.6,1965.6,7.26107811]
[1772539566307,0.58842951,1966.4,1965.4,0.59907811]
[1772539566507,0.59397902,1966.4,1965.4,0.59907811]
[1772539568011,0.59397902,1966.4,1965.6,0.59907811]
[1772539569810,0.00554951,1966.4,1965.6,0.59907811]
[1772539570510,0.58842951,1966.7,1965.6,0.59907811]
[1772539571307,0.58842951,1966.7,1965.7,6.663]
[1772539571510,0.59237801,1966.7,1965.8,0.59907811]
[1772539572007,0.0039485,1966.7,1965.8,0.59907811]
[1772539573914,0.59237801,1966.7,1965.8,0.59907811]
[1772539574114,0.59237801,1966.7,1966.0,0.59907811]
[1772539574508,0.59237801,1966.7,1966.1,6.663]
[1772539575316,0.0039485,1966.7,1966.2,0.59907811]
[1772539575516,0.59237801,1966.7,1966.2,7.26207811]
[1772539576313,0.59237801,1966.7,1966.3,0.59907811]
[1772539576514,0.59237801,1966.7,1966.2,7.26207811]
[1772539576911,0.59237801,1966.7,1966.2,6.663]
[1772539578024,0.59237801,1966.7,1966.3,0.58792044]
[1772539578413,0.60249256,1967.5,1966.3,0.58792044]
[1772539578721,0.60249256,1967.4,1966.3,0.58792044]
[1772539579518,0.60887232,1967.4,1966.3,0.58792044]
[1772539580617,0.56940881,1967.8,1966.6,0.25428]
[1772539580823,0.56940881,1967.8,1966.8,0.59125035]
[1772539581017,0.56940881,1967.8,1967.0,0.59125035]
[1772539581818,0.57350946,1967.8,1967.0,0.59765489]
[1772539582427,0.57350946,1967.8,1967.1,6.663]
[1772539582623,4.80886734,1968.6,1967.7,0.59125035]
[1772539582822,0.56940881,1968.5,1967.8,7.25425035]
[1772539583121,0.56940881,1968.5,1967.9,7.25425035]
[1772539583322,0.56940881,1968.5,1967.7,7.25425035]
[1772539583723,0.57360545,1968.5,1967.8,0.59125035]
[1772539584118,0.57360545,1968.5,1967.8,7.25425035]
[1772539584317,0.57360545,1968.5,1967.9,0.59125035]
[1772539584318,0.00419664,1968.5,1967.9,0.59125035]
[1772539584621,0.56940881,1968.9,1967.9,0.59125035]
[1772539584814,6.37942156,1969.6,1968.9,0.59125035]
[1772539584815,0.29828434,1969.6,1968.9,0.59125035]
[1772539585122,0.56940881,1969.8,1969.1,0.59125035]
[1772539585419,0.56940881,1969.8,1968.9,7.25325035]
[1772539585618,0.56940881,1969.8,1968.9,7.25833138]
[1772539585824,0.57345089,1969.8,1968.9,7.25833138]
[1772539586024,0.57345089,1969.8,1969.0,0.59125035]
[1772539586727,0.00404208,1969.8,1969.0,0.59125035]
[1772539587023,0.57345089,1969.8,1969.1,6.661]
[1772539587222,0.00404208,1969.8,1969.2,0.59125035]
[1772539587523,0.56940881,1970.4,1969.2,0.59125035]
[1772539588223,0.56940881,1970.4,1969.4,0.59125035]
[1772539588426,0.56940881,1970.4,1969.5,0.59125035]
[1772539588616,0.5739991,1970.4,1969.5,0.59125035]
[1772539589020,0.5739991,1970.4,1969.3,7.25125035]
[1772539589222,0.56940881,1970.2,1969.0,0.59125035]
[1772539589421,0.56940881,1970.2,1969.2,0.59125035]
[1772539589622,0.56940881,1970.2,1969.4,0.59125035]
[1772539590420,0.56940881,1970.2,1969.4,7.25025035]
[1772539590620,0.56940881,1970.2,1969.5,0.59125035]
[1772539590923,0.5739991,1970.4,1969.5,0.59125035]
[1772539591124,4.17987676,1972.0,1970.4,0.59125035]
[1772539591326,4.17987676,1972.0,1970.2,6.24392]
[1772539591327,0.56940881,1972.7,1971.0,0.59125035]
[1772539591621,6.48912,1972.9,1971.0,0.59125035]
[1772539591622,0.56940881,1972.6,1971.0,0.59125035]
[1772539591819,6.23711,1972.4,1971.2,0.59125035]
[1772539592023,0.56940881,1972.1,1971.2,0.59125035]
[1772539592322,6.23774,1972.2,1970.3,2.39041237]
[1772539592323,6.23964,1971.6,1970.7,0.52678371]
[1772539592529,0.56940881,1971.5,1970.7,0.52678371]
[1772539593422,0.56940881,1971.5,1970.7,0.53326579]
[1772539593627,6.23964,1971.6,1970.3,0.52678371]
[1772539593628,0.56940881,1971.3,1970.3,0.52678371]
[1772539594326,0.56940881,1971.3,1970.1,6.656]
[1772539594629,0.56940881,1971.3,1970.1,6.6624362]
[1772539595130,0.56940881,1971.3,1970.2,6.656]
[1772539595629,0.56940881,1971.3,1970.2,6.655]
[1772539596229,0.56940881,1971.3,1970.1,0.0064362]
[1772539596430,0.56940881,1971.3,1970.2,6.654]
[1772539600236,0.56940881,1971.3,1970.2,13.15184]
[1772539600439,6.654,1972.2,1970.2,13.15184]
[1772539600440,0.62022755,1972.1,1970.2,6.90781]
[1772539600644,0.62022755,1972.1,1970.2,0.25381]
[1772539600848,0.62022755,1971.9,1970.3,6.653]
[1772539602433,0.62022755,1971.9,1970.4,6.652]
[1772539603238,0.62022755,1971.9,1970.5,0.25378]
[1772539603439,0.62022755,1971.9,1970.5,6.04407275]
[1772539603739,0.62022755,1971.9,1970.5,0.25378]
[1772539603938,0.62022755,1971.9,1970.9,0.25373]
[1772539604137,0.62022755,1971.9,1971.0,6.652]
[1772539604536,0.62022755,1971.9,1970.3,6.24374]
[1772539604537,0.62022755,1971.9,1970.3,6.49753]
[1772539604840,0.62022755,1971.9,1970.4,6.651]
[1772539605240,0.62022755,1971.9,1970.5,0.25378]
[1772539606235,0.62022755,1971.9,1970.5,6.49683]
[1772539607236,0.62022755,1971.9,1970.5,0.25378]
[1772539607845,0.62022755,1971.9,1970.6,6.65]
[1772539608443,0.62022755,1971.9,1970.7,6.65]
[1772539608837,0.62022755,1971.9,1970.5,0.25378]
[1772539609140,0.62022755,1971.9,1970.1,0.0064362]
[1772539609339,0.62733439,1971.3,1970.1,6.6564362]
[1772539609635,0.62733439,1971.3,1970.2,6.65]
[1772539610142,0.62733439,1971.3,1970.3,0.00433231]
[1772539611043,0.62733439,1971.3,1970.4,6.65433231]
[1772539612435,0.62733439,1971.3,1970.5,0.01525199]
[1772539612636,0.60931337,1971.8,1970.5,0.01525199]
[1772539613040,0.60931337,1971.8,1970.6,6.65]
[1772539613244,0.60931337,1971.8,1970.7,0.01525199]
[1772539614844,0.60931337,1971.8,1970.9,0.02456313]
[1772539615236,0.60500451,1972.3,1970.9,0.02456313]
[1772539615544,0.60500451,1972.3,1971.0,6.649]
[1772539615845,0.60500451,1972.3,1971.1,6.649]
[1772539616348,0.6053657,1972.1,1970.9,0.02456313]
[1772539616644,0.6053657,1971.9,1970.3,0.2538]
[1772539616846,0.25361,1971.8,1970.4,6.67354465]
[1772539617046,0.6053657,1971.7,1970.4,6.67354465]
[1772539617235,0.6053657,1971.7,1970.5,0.02487925]
[1772539617441,0.6053657,1971.7,1970.3,0.27871402]
[1772539617648,0.6053657,1971.7,1970.5,0.02491402]
[1772539618445,0.6053657,1971.7,1970.4,0.02239274]
[1772539618648,0.6053657,1971.7,1970.4,6.67139274]
[1772539619043,0.60676979,1971.5,1970.0,6.67139274]
[1772539619243,6.23968,1971.6,1970.0,6.67139274]
[1772539619244,0.60676979,1971.3,1970.1,0.02915649]
[1772539619544,0.60676979,1971.3,1970.2,0.02275356]
[1772539620449,0.60676979,1971.3,1970.3,0.02754396]
[1772539621345,0.60676979,1971.3,1970.3,6.67654396]
[1772539622343,0.60676979,1971.3,1970.4,0.03523721]
[1772539622645,0.60676979,1971.3,1970.4,6.68423721]
[1772539624246,0.60676979,1971.3,1970.5,0.04019213]
[1772539624949,0.60676979,1971.3,1970.7,0.04019213]
[1772539625153,0.60676979,1971.3,1970.6,6.68952722]
[1772539625551,0.60676979,1971.3,1970.7,0.04052722]
[1772539627648,0.60676979,1971.3,1970.5,0.04220646]
[1772539628052,0.60676979,1971.3,1970.6,6.649]
[1772539628253,0.60676979,1971.3,1970.3,0.04029045]
[1772539628553,0.60676979,1971.3,1970.4,6.68929045]
[1772539629058,0.59937229,1971.2,1970.4,6.68929045]
[1772539630055,7.6168005,1971.1,1970.1,0.0064362]
[1772539630259,0.59612538,1970.9,1970.1,0.05381013]
[1772539630453,0.60152964,1970.9,1970.1,0.05381013]
[1772539630658,0.59612538,1970.8,1970.1,0.05381013]
[1772539631657,0.59881075,1971.5,1970.3,0.0422863]
[1772539631861,0.59881075,1971.4,1970.5,0.0422863]
[1772539632060,0.59881075,1971.4,1970.7,0.0422863]
[1772539632554,0.59881075,1971.4,1970.5,0.04814694]